fUSD/lending_fUSD_20260613
["ID","MTS","AMOUNT","RATE_DAILY","PERIOD"]
[424974849,1781364665000,-451.63088329,0.0002945,7]
[424974848,1781364665000,-554.14156868,0.0002945,7]
[424974846,1781364665000,-337.24003181,0.0002945,7]
[424974855,1781364665000,-494.05785594,0.0002945,5]
[424974852,1781364665000,-310.30066638,0.0002945,7]
[424974854,1781364665000,-520.21727634,0.0002945,5]
[424974851,1781364665000,-496.5790067,0.0002945,7]
[424974853,1781364665000,-459.88123643,0.0002945,7]
[424974858,1781364665000,-452.80577407,0.0002945,7]
[424974868,1781364665000,-282.39741276,0.00029526,7]
[424974867,1781364665000,-568.53786923,0.00029526,7]
[424974863,1781364665000,-855.3,0.00029482,13]
[424974839,1781364665000,-451.6889,0.0002945,7]
[424974859,1781364665000,-410.92829829,0.0002945,7]
[424974857,1781364665000,-389.6785586,0.0002945,7]
[424974838,1781364665000,-465.89028998,0.0002945,7]
[424974828,1781364665000,-203.02214875,0.0002945,7]
[424974840,1781364665000,-476.31034153,0.0002945,7]
[424974860,1781364665000,-441.14913274,0.0002945,7]
[424974819,1781364665000,-200.85507384,0.0002945,7]
[424974820,1781364665000,-283.562939,0.0002945,7]
[424974818,1781364665000,-174.92467267,0.0002945,7]
[424974821,1781364665000,-245.06560329,0.0002945,7]
[424974823,1781364665000,-225.64017706,0.0002945,7]
[424974824,1781364665000,-233.49665667,0.0002945,7]
[424974826,1781364665000,-585.74852472,0.0002945,7]
[424974822,1781364665000,-284.3040931,0.0002945,7]
[424974830,1781364665000,-467.52874177,0.0002945,7]
[424974825,1781364665000,-478.2947334,0.0002945,7]
[424974832,1781364665000,-232.40750546,0.0002945,7]
[424974827,1781364665000,-160.06722887,0.0002945,7]
[424974829,1781364665000,-243.90191857,0.0002945,7]
[424974831,1781364665000,-358.59923574,0.0002945,2]
[424974833,1781364665000,-577.77607659,0.0002945,7]
[424974837,1781364665000,-347.47914688,0.0002945,7]
[424974835,1781364665000,-150.85547736,0.0002945,7]
[424974836,1781364665000,-455.25057047,0.0002945,2]
[424974834,1781364665000,-345.68079418,0.0002945,7]
[424974842,1781364665000,-522.70230816,0.0002945,7]
[424974844,1781364665000,-229.25248672,0.0002945,7]
[424974862,1781364665000,-151.0,0.00029466,7]
[424974883,1781364665000,-444.0,0.00029615,2]
[424974864,1781364665000,-370.5,0.000295,7]
[424974893,1781364665000,-511.1,0.00029746,2]
[424974894,1781364665000,-266.0,0.00029749,2]
[424974896,1781364665000,-1929.71978897,0.00029755,2]
[424974895,1781364665000,-444.0,0.00029749,2]
[424974897,1781364665000,-200.0,0.00029759,2]
[424974900,1781364665000,-298.38688076,0.00029769,120]
[424974898,1781364665000,-1929.71978897,0.00029763,2]
[424974861,1781364665000,-1929.71978897,0.0002945,2]
[424974899,1781364665000,-444.0,0.00029768,2]
[424974901,1781364665000,-1929.71978897,0.00029781,2]
[424974903,1781364665000,-444.0,0.00029803,2]
[424974912,1781364665000,-57208.99237744,0.000299,2]
[424974908,1781364665000,-444.0,0.00029851,2]
[424974911,1781364665000,-444.0,0.00029891,2]
[424974913,1781364665000,-9122.44673509,0.000299,30]
[424974910,1781364665000,-444.0,0.00029874,2]
[424974907,1781364665000,-444.0,0.00029843,2]
[424974909,1781364665000,-444.0,0.00029864,2]
[424974905,1781364665000,-6503.0,0.0002983,10]
[424974906,1781364665000,-152.0,0.00029839,6]
[424974904,1781364665000,-444.0,0.00029815,2]
[424974892,1781364665000,-284.01862642,0.00029728,2]
[424974891,1781364665000,-1998.9991099,0.000297,120]
[424974902,1781364665000,-444.0,0.00029792,2]
[424974889,1781364665000,-440.74,0.00029679,9]
[424974866,1781364665000,-542.23730724,0.00029526,7]
[424974890,1781364665000,-4262.96033156,0.000297,2]
[424974865,1781364665000,-420.58201532,0.00029526,7]
[424974872,1781364665000,-575.25734476,0.00029526,7]
[424974869,1781364665000,-551.57899222,0.00029526,7]
[424974871,1781364665000,-568.32337785,0.00029526,7]
[424974877,1781364665000,-623.7556285,0.00029527,7]
[424974874,1781364665000,-462.78356577,0.00029526,7]
[424974875,1781364665000,-461.31870508,0.00029526,7]
[424974878,1781364665000,-555.52793983,0.00029527,7]
[424974870,1781364665000,-493.99259586,0.00029526,7]
[424974873,1781364665000,-212.11512792,0.00029526,7]
[424974876,1781364665000,-455.49225134,0.00029526,7]
[424974886,1781364665000,-444.0,0.00029651,2]
[424974879,1781364665000,-511.1,0.0002955,2]
[424974888,1781364665000,-444.0,0.00029675,2]
[424974884,1781364665000,-1929.71978897,0.00029617,2]
[424974885,1781364665000,-1929.71978897,0.00029629,2]
[424974887,1781364665000,-1929.71978897,0.00029671,2]
[424974881,1781364665000,-1929.71978897,0.00029569,2]
[424974880,1781364665000,-25079.43204777,0.0002955,2]
[424974882,1781364665000,-298.38688076,0.00029583,120]
[424974928,1781364667000,-5776.42017152,0.000299,2]
[424974932,1781364667000,-5776.42017152,0.000299,2]
[424974940,1781364667000,-5776.42017152,0.000299,2]
[424974931,1781364667000,-5776.42017152,0.000299,2]
[424974930,1781364667000,-5776.42017152,0.000299,2]
[424974929,1781364667000,-600.0,0.000299,10]
[424974926,1781364667000,-5776.42017152,0.000299,2]
[424974927,1781364667000,-5776.42017152,0.000299,2]
[424974925,1781364667000,-5776.42017152,0.000299,2]
[424974924,1781364667000,-5776.42017152,0.000299,2]
[424974915,1781364667000,-187.85209862,0.000299,2]
[424974923,1781364667000,-5776.42017152,0.000299,2]
[424974921,1781364667000,-5776.42017152,0.000299,2]
[424974920,1781364667000,-5776.42017168,0.000299,2]
[424974919,1781364667000,-274.16129879,0.000299,2]
[424974917,1781364667000,-411.68175166,0.000299,2]
[424974918,1781364667000,-152.31183266,0.000299,2]
[424974916,1781364667000,-399.37356166,0.000299,2]
[424974914,1781364667000,-2016.74839466,0.000299,30]
[424974941,1781364667000,-456.42304056,0.000299,10]
[424974922,1781364667000,-5776.42017152,0.000299,2]
[424974938,1781364667000,-5776.42017152,0.000299,2]
[424974955,1781364667000,-482.10530452,0.00029953,2]
[424974937,1781364667000,-5776.42017152,0.000299,2]
[424974933,1781364667000,-5776.42017152,0.000299,2]
[424974959,1781364667000,-1000.0,0.00029953,2]
[424974958,1781364667000,-1000.0,0.00029953,2]
[424974957,1781364667000,-1000.0,0.00029953,2]
[424974954,1781364667000,-1000.0,0.00029953,2]
[424974953,1781364667000,-511.1,0.00029941,2]
[424974952,1781364667000,-444.0,0.00029932,2]
[424974951,1781364667000,-1579.6,0.00029903,2]
[424974949,1781364667000,-1000.0,0.00029903,2]
[424974950,1781364667000,-1000.0,0.00029903,2]
[424974956,1781364667000,-517.89469548,0.00029953,2]
[424974944,1781364667000,-352.115069,0.00024658,2]
[424974947,1781364667000,-475.72833017,0.00029903,2]
[424974936,1781364667000,-5776.42017152,0.000299,2]
[424974934,1781364667000,-5776.42017152,0.000299,2]
[424974935,1781364667000,-5776.42017152,0.000299,2]
[424974939,1781364667000,-5776.42017152,0.000299,2]
[424974942,1781364667000,-443.57695944,0.000299,10]
[424974948,1781364667000,-1000.0,0.00029903,2]
[424974946,1781364667000,-1480.00502331,0.000299,10]
[424974945,1781364667000,-422.046273,0.00029,7]
[424974943,1781364667000,-819.99497669,0.000299,10]
[424974982,1781364668000,-500.0,0.0003,2]
[424974983,1781364668000,-500.0,0.0003,2]
[424974981,1781364668000,-500.0,0.0003,2]
[424974985,1781364668000,-500.0,0.0003,2]
[424974986,1781364668000,-500.0,0.0003,2]
[424974984,1781364668000,-500.0,0.0003,2]
[424974987,1781364668000,-500.0,0.0003,2]
[424974997,1781364668000,-500.0,0.0003,2]
[424974999,1781364668000,-27051.83359538,0.0003,5]
[424974991,1781364668000,-500.0,0.0003,2]
[424974990,1781364668000,-500.0,0.0003,2]
[424974992,1781364668000,-500.0,0.0003,2]
[424974995,1781364668000,-500.0,0.0003,2]
[424974989,1781364668000,-500.0,0.0003,2]
[424974979,1781364668000,-500.0,0.0003,2]
[424974988,1781364668000,-500.0,0.0003,2]
[424974980,1781364668000,-500.0,0.0003,2]
[424974971,1781364668000,-412.0,0.0003,2]
[424974978,1781364668000,-500.0,0.0003,2]
[424974960,1781364668000,-1869.41,0.00029953,2]
[424974962,1781364668000,-354.16805249,0.00029965,2]
[424974961,1781364668000,-444.0,0.00029953,2]
[424974965,1781364668000,-1283.85,0.0002997,15]
[424974963,1781364668000,-400.0,0.0002997,2]
[424974964,1781364668000,-700.0,0.0002997,2]
[424974966,1781364668000,-501.0,0.00029977,13]
[424974972,1781364668000,-200.0,0.0003,11]
[424974994,1781364668000,-500.0,0.0003,2]
[424974968,1781364668000,-6206.9,0.00029993,7]
[424974967,1781364668000,-241.87497495,0.0002999,2]
[424974969,1781364668000,-150.0,0.00029999,2]
[424974976,1781364668000,-370.5,0.0003,7]
[424974973,1781364668000,-200.0,0.0003,11]
[424974975,1781364668000,-200.0,0.0003,11]
[424974974,1781364668000,-200.0,0.0003,11]
[424974970,1781364668000,-217304.60059188,0.0003,2]
[424974977,1781364668000,-500.0,0.0003,2]
[424974993,1781364668000,-500.0,0.0003,2]
[424974998,1781364668000,-305.97556066,0.0003,2]
[424975001,1781364668000,-674.93896235,0.0003,60]
[424975022,1781364668000,-500.0,0.00013698,2]
[424975024,1781364668000,-230.44063676,0.00024658,2]
[424975023,1781364668000,-500.0,0.00014045,2]
[424975026,1781364668000,-111.70627847,0.00024658,2]
[424975034,1781364668000,-422.046273,0.00029,7]
[424975025,1781364668000,-500.0,0.00014399,2]
[424975027,1781364668000,-9.96815377,0.00024658,2]
[424975028,1781364668000,-352.115069,0.00024658,2]
[424975032,1781364668000,-914.45,0.0002755,30]
[424975033,1781364668000,-914.45,0.00027711,7]
[424975030,1781364668000,-19971.64,0.00027397,10]
[424975029,1781364668000,-422.046273,0.00027397,2]
[424975031,1781364668000,-422.046273,0.00027397,2]
[424975035,1781364668000,-352.115069,0.00029,7]
[424974996,1781364668000,-500.0,0.0003,2]
[424975036,1781364668000,-422.046273,0.00029,7]
[424975038,1781364668000,-170.02039509,0.0003,120]
[424975021,1781364668000,-500.0,0.00013698,2]
[424975020,1781364668000,-500.0,0.00013698,2]
[424975037,1781364668000,-3856.65720755,0.0003,3]
[424975018,1781364668000,-500.0,0.00013698,2]
[424975019,1781364668000,-500.0,0.00013698,2]
[424975002,1781364668000,-2907.55354679,0.0003,2]
[424975004,1781364668000,-352.115069,0.00024658,2]
[424975013,1781364668000,-543.10878747,0.0003,3]
[424975006,1781364668000,-422.046273,0.00027397,2]
[424975007,1781364668000,-352.115069,0.00029,7]
[424975008,1781364668000,-8491.00754081,0.0003,2]
[424975009,1781364668000,-208.46026331,0.0003,52]
[424975000,1781364668000,-200.0,0.0003,2]
[424975003,1781364668000,-1114.02357867,0.00013699,2]
[424975010,1781364668000,-275.25722973,0.0003,2]
[424975011,1781364668000,-205.09278917,0.0003,2]
[424975012,1781364668000,-1661.92081995,0.0003,3]
[424975014,1781364668000,-500.0,0.00013698,2]
[424975016,1781364668000,-619.16960025,0.0003,3]
[424975015,1781364668000,-319.14358478,0.0003,3]
[424975005,1781364668000,-422.046273,0.00027397,2]
[424975017,1781364668000,-500.0,0.00013698,2]
[424975056,1781364669000,-4430.74539494,0.0003,7]
[424975058,1781364669000,-226.65659514,0.0003,2]
[424975060,1781364669000,-2499.99,0.0003,2]
[424975061,1781364669000,-22499.99,0.0003,2]
[424975064,1781364669000,-22500.0,0.0003,2]
[424975068,1781364669000,-22500.0,0.0003,2]
[424975067,1781364669000,-2500.0,0.0003,2]
[424975063,1781364669000,-12500.0,0.0003,2]
[424975062,1781364669000,-22499.98,0.0003,2]
[424975066,1781364669000,-12499.99,0.0003,2]
[424975065,1781364669000,-25000.0,0.0003,2]
[424975070,1781364669000,-2499.99,0.0003,2]
[424975078,1781364669000,-4134.52,0.0003,2]
[424975055,1781364669000,-4430.74539494,0.0003,7]
[424975059,1781364669000,-200.0,0.0003,2]
[424975054,1781364669000,-210.58,0.0003,11]
[424975047,1781364669000,-1030.02937093,0.0003,120]
[424975050,1781364669000,-200.0,0.0003,2]
[424975040,1781364669000,-87877.0,0.0003,2]
[424975079,1781364669000,-12500.0,0.0003,2]
[424975041,1781364669000,-2000.0,0.0003,3]
[424975039,1781364669000,-20283.51476904,0.0003,2]
[424975042,1781364669000,-1126.60237562,0.0003,2]
[424975043,1781364669000,-1854.96988856,0.0003,2]
[424975053,1781364669000,-200.0,0.0003,11]
[424975045,1781364669000,-1000.0,0.0003,2]
[424975057,1781364669000,-3161.85,0.0003,120]
[424975046,1781364669000,-166.30035688,0.0003,2]
[424975049,1781364669000,-1548.73023618,0.0003,7]
[424975048,1781364669000,-1548.73023618,0.0003,7]
[424975051,1781364669000,-1000.0,0.0003,120]
[424975052,1781364669000,-1000.0,0.0003,2]
[424975044,1781364669000,-2763.94182595,0.0003,2]
[424975073,1781364669000,-17413.86748571,0.0003,2]
[424975108,1781364669000,-11147.08821243,0.0003,2]
[424975069,1781364669000,-25000.0,0.0003,2]
[424975093,1781364669000,-406.81,0.0003,2]
[424975094,1781364669000,-351.81,0.0003,2]
[424975097,1781364669000,-12499.99,0.0003,2]
[424975096,1781364669000,-2499.98,0.0003,2]
[424975100,1781364669000,-505.0,0.0003,120]
[424975099,1781364669000,-9999.98,0.0003,2]
[424975091,1781364669000,-168.56113,0.0003,7]
[424975102,1781364669000,-12499.98,0.0003,2]
[424975101,1781364669000,-2082.8,0.0003,2]
[424975105,1781364669000,-12500.0,0.0003,2]
[424975107,1781364669000,-12499.98,0.0003,2]
[424975104,1781364669000,-22499.99,0.0003,2]
[424975106,1781364669000,-2883.46,0.0003,2]
[424975071,1781364669000,-3040.79,0.0003,2]
[424975103,1781364669000,-2499.99,0.0003,2]
[424975095,1781364669000,-22499.99,0.0003,2]
[424975098,1781364669000,-22499.99,0.0003,2]
[424975087,1781364669000,-155.646716,0.0003,7]
[424975072,1781364669000,-652.45251429,0.0003,2]
[424975074,1781364669000,-12500.0,0.0003,2]
[424975075,1781364669000,-2500.0,0.0003,2]
[424975092,1781364669000,-208.61,0.0003,2]
[424975077,1781364669000,-24999.99,0.0003,2]
[424975081,1781364669000,-13284.39,0.0003,2]
[424975085,1781364669000,-297.49462527,0.0003,7]
[424975088,1781364669000,-168.56113,0.0003,7]
[424975076,1781364669000,-19494.19,0.0003,2]
[424975084,1781364669000,-152.0,0.0003,7]
[424975083,1781364669000,-152.0,0.0003,7]
[424975089,1781364669000,-168.56113,0.0003,7]
[424975080,1781364669000,-15000.0,0.0003,2]
[424975086,1781364669000,-588.18,0.0003,2]
[424975082,1781364669000,-164.73,0.0003,2]
[424975090,1781364669000,-168.56113,0.0003,7]
[424975119,1781364670000,-279.85746921,0.00017867,2]
[424975118,1781364670000,-1821.0,0.00015836,2]
[424975116,1781364670000,-500.0,0.00014899,2]
[424975115,1781364670000,-500.0,0.00014899,2]
[424975111,1781364670000,-106.3539611,0.00014799,2]
[424975113,1781364670000,-425.6460389,0.00014899,2]
[424975112,1781364670000,-500.0,0.00014898,2]
[424975109,1781364670000,-168.852857,0.00012062,2]
[424975122,1781364670000,-914.45,0.00028033,30]
[424975114,1781364670000,-74.3539611,0.00014899,2]
[424975121,1781364670000,-914.45,0.00027872,2]
[424975110,1781364670000,-393.6460389,0.00014799,2]
[424975123,1781364670000,-914.45,0.00028194,7]
[424975132,1781364670000,-9999.98,0.0003,2]
[424975130,1781364670000,-2499.99,0.0003,2]
[424975129,1781364670000,-13009.37013874,0.0003,2]
[424975120,1781364670000,-277.0,0.0002,2]
[424975127,1781364670000,-24999.99,0.0003,2]
[424975131,1781364670000,-22499.98,0.0003,2]
[424975125,1781364670000,-24999.99,0.0003,2]
[424975126,1781364670000,-12499.99,0.0003,2]
[424975124,1781364670000,-11352.91178757,0.0003,2]
[424975117,1781364670000,-490.66911066,0.00014899,2]
[424975128,1781364670000,-11990.61986126,0.0003,2]
[424975133,1781364670000,-4003.49101668,0.0003,2]
[424975135,1781364789000,-443.57695944,0.00011966,2]
[424975136,1781364811000,-271.99228054,0.00011966,2]
[424975137,1781364819000,1136.92,0.00012,16]
[424975138,1781364863000,-302.78374723,0.00011966,2]
[424975139,1781365028000,-150.0,0.000106,2]
[424975140,1781365119000,1136.92,0.00012,16]
[424975141,1781365298000,-287.55404497,9.863e-05,2]
[424975142,1781365458000,-250.0,9.862e-05,2]
[424975143,1781365552000,-573.95450408,9.862e-05,2]
[424975144,1781365606000,-150.0,9.863e-05,2]
[424975145,1781365641000,-168.98261455,9.863e-05,2]
[424975146,1781365652000,-568.38669575,9.863e-05,2]
[424975147,1781365664000,167.43618432,0.00010137,30]
[424975148,1781365752000,-575.29855208,9.862e-05,2]
[424975203,1781365834000,-139.18228745,9.863e-05,2]
[424975200,1781365834000,-314.0,9.863e-05,2]
[424975202,1781365834000,-175.81771255,9.863e-05,2]
[424975199,1781365834000,-311.0,9.863e-05,2]
[424975205,1781365834000,-319.0,9.863e-05,2]
[424975214,1781365834000,-293.6924121,9.863e-05,2]
[424975207,1781365834000,-315.0,9.863e-05,2]
[424975208,1781365834000,-328.62317821,9.863e-05,2]
[424975206,1781365834000,-321.0,9.863e-05,2]
[424975216,1781365834000,-426.32529319,9.863e-05,2]
[424975211,1781365834000,-391.61240778,9.863e-05,2]
[424975213,1781365834000,-206.3075879,9.863e-05,2]
[424975210,1781365834000,-500.0,9.863e-05,2]
[424975212,1781365834000,-108.38759222,9.863e-05,2]
[424975201,1781365834000,-316.0,9.863e-05,2]
[424975209,1781365834000,-500.0,9.863e-05,2]
[424975196,1781365834000,-310.0,9.863e-05,2]
[424975190,1781365834000,-204.19170876,9.863e-05,2]
[424975198,1781365834000,-318.0,9.863e-05,2]
[424975215,1781365834000,-500.0,9.863e-05,2]
[424975181,1781365834000,-287.06431718,9.862e-05,2]
[424975182,1781365834000,-212.93568282,9.862e-05,2]
[424975183,1781365834000,-500.0,9.862e-05,2]
[424975184,1781365834000,-469.46352696,9.862e-05,2]
[424975185,1781365834000,-500.0,9.862e-05,2]
[424975192,1781365834000,-320.0,9.863e-05,2]
[424975193,1781365834000,-315.0,9.863e-05,2]
[424975189,1781365834000,-150.0,9.863e-05,2]
[424975187,1781365834000,-500.0,9.863e-05,2]
[424975186,1781365834000,-500.0,9.863e-05,2]
[424975191,1781365834000,-312.0,9.863e-05,2]
[424975188,1781365834000,-500.0,9.863e-05,2]
[424975195,1781365834000,-318.0,9.863e-05,2]
[424975204,1781365834000,-316.0,9.863e-05,2]
[424975197,1781365834000,-312.0,9.863e-05,2]
[424975218,1781365834000,-500.0,9.863e-05,2]
[424975194,1781365834000,-310.0,9.863e-05,2]
[424975220,1781365834000,-500.0,9.863e-05,2]
[424975246,1781365834000,-150.0,9.864e-05,2]
[424975243,1781365834000,-500.0,9.863e-05,2]
[424975241,1781365834000,-191.96330398,9.863e-05,2]
[424975240,1781365834000,-500.0,9.863e-05,2]
[424975244,1781365834000,-500.0,9.864e-05,2]
[424975242,1781365834000,-500.0,9.863e-05,2]
[424975245,1781365834000,-376.9562997,9.864e-05,2]
[424975239,1781365834000,-500.0,9.863e-05,2]
[424975247,1781365834000,-318.0,9.865e-05,2]
[424975249,1781365834000,-315.0,9.865e-05,2]
[424975253,1781365834000,-7667.54,9.872e-05,2]
[424975252,1781365834000,-1219.3,9.872e-05,2]
[424975250,1781365834000,-216.029201,9.867e-05,2]
[424975254,1781365834000,-321.0,9.873e-05,2]
[424975251,1781365834000,-150.0,9.872e-05,2]
[424975217,1781365834000,-500.0,9.863e-05,2]
[424975248,1781365834000,-310.0,9.865e-05,2]
[424975237,1781365834000,-500.0,9.863e-05,2]
[424975255,1781365834000,-316.0,9.873e-05,2]
[424975235,1781365834000,-500.0,9.863e-05,2]
[424975225,1781365834000,-500.0,9.863e-05,2]
[424975224,1781365834000,-500.0,9.863e-05,2]
[424975221,1781365834000,-605.58817595,9.863e-05,2]
[424975222,1781365834000,-500.0,9.863e-05,2]
[424975223,1781365834000,-500.0,9.863e-05,2]
[424975238,1781365834000,-500.0,9.863e-05,2]
[424975226,1781365834000,-500.0,9.863e-05,2]
[424975227,1781365834000,-500.0,9.863e-05,2]
[424975219,1781365834000,-500.0,9.863e-05,2]
[424975230,1781365834000,-500.0,9.863e-05,2]
[424975231,1781365834000,-500.0,9.863e-05,2]
[424975234,1781365834000,-500.0,9.863e-05,2]
[424975233,1781365834000,-500.0,9.863e-05,2]
[424975229,1781365834000,-600.44768301,9.863e-05,2]
[424975236,1781365834000,-500.0,9.863e-05,2]
[424975228,1781365834000,-500.0,9.863e-05,2]
[424975232,1781365834000,-500.0,9.863e-05,2]
[424975267,1781365835000,-12067.97016425,0.00010564,2]
[424975257,1781365835000,-317.0,9.929e-05,2]
[424975258,1781365835000,-3200.0,0.00010027,2]
[424975256,1781365835000,-318.0,9.929e-05,2]
[424975260,1781365835000,-2000.0,0.00010167,2]
[424975268,1781365835000,-1254.41808677,0.00010564,2]
[424975261,1781365835000,-1460.67631172,0.00010257,2]
[424975265,1781365835000,-151.0,0.00010561,2]
[424975262,1781365835000,-3200.0,0.00010278,2]
[424975264,1781365835000,-3200.0,0.00010529,2]
[424975266,1781365835000,-1908.6578,0.00010563,2]
[424975263,1781365835000,-1657.23394792,0.00010471,2]
[424975270,1781365835000,-16819.5927357,0.00010564,2]
[424975269,1781365835000,-7634.04617691,0.00010564,2]
[424975259,1781365835000,-250.0,0.00010167,2]
[424975295,1781365838000,-312.0,0.00010662,2]
[424975297,1781365838000,-150.0,0.00010662,2]
[424975296,1781365838000,-151.0,0.00010662,2]
[424975298,1781365838000,-310.0,0.00010662,2]
[424975299,1781365838000,-316.0,0.00010662,2]
[424975306,1781365838000,-151.0,0.00010663,2]
[424975294,1781365838000,-312.0,0.00010662,2]
[424975304,1781365838000,-9999.99,0.00010663,2]
[424975305,1781365838000,-151.0,0.00010663,2]
[424975302,1781365838000,-152.0,0.00010663,2]
[424975300,1781365838000,-316.0,0.00010662,2]
[424975289,1781365838000,-309.0,0.00010662,2]
[424975290,1781365838000,-316.0,0.00010662,2]
[424975293,1781365838000,-313.0,0.00010662,2]
[424975291,1781365838000,-310.0,0.00010662,2]
[424975288,1781365838000,-152.0,0.00010662,2]
[424975287,1781365838000,-151.0,0.00010662,2]
[424975286,1781365838000,-312.0,0.00010662,2]
[424975285,1781365838000,-313.0,0.00010662,2]
[424975283,1781365838000,-310.0,0.00010662,2]
[424975282,1781365838000,-153.0,0.00010662,2]
[424975281,1781365838000,-180.44,0.000106,2]
[424975280,1781365838000,-1447840.33404469,0.00010564,2]
[424975279,1781365838000,-14383.63879168,0.00010564,2]
[424975284,1781365838000,-311.0,0.00010662,2]
[424975292,1781365838000,-150.0,0.00010662,2]
[424975303,1781365838000,-151.0,0.00010663,2]
[424975308,1781365838000,-150.0,0.00010663,2]
[424975307,1781365838000,-151.0,0.00010663,2]
[424975301,1781365838000,-152.0,0.00010663,2]
[424975333,1781365838000,-3200.0,0.00010779,2]
[424975332,1781365838000,-160.0,0.00010678,2]
[424975329,1781365838000,-313.0,0.00010663,2]
[424975330,1781365838000,-150.99,0.00010663,2]
[424975322,1781365838000,-151.0,0.00010663,2]
[424975321,1781365838000,-321.0,0.00010663,2]
[424975325,1781365838000,-317.0,0.00010663,2]
[424975326,1781365838000,-310.0,0.00010663,2]
[424975324,1781365838000,-319.0,0.00010663,2]
[424975320,1781365838000,-309.0,0.00010663,2]
[424975328,1781365838000,-150.0,0.00010663,2]
[424975331,1781365838000,-9999.99,0.00010664,2]
[424975319,1781365838000,-153.0,0.00010663,2]
[424975323,1781365838000,-314.0,0.00010663,2]
[424975315,1781365838000,-316.0,0.00010663,2]
[424975310,1781365838000,-318.0,0.00010663,2]
[424975316,1781365838000,-151.0,0.00010663,2]
[424975317,1781365838000,-320.0,0.00010663,2]
[424975309,1781365838000,-313.0,0.00010663,2]
[424975313,1781365838000,-319.0,0.00010663,2]
[424975312,1781365838000,-321.0,0.00010663,2]
[424975318,1781365838000,-297.0,0.00010663,2]
[424975327,1781365838000,-150.0,0.00010663,2]
[424975311,1781365838000,-151.0,0.00010663,2]
[424975314,1781365838000,-309.0,0.00010663,2]
[424975360,1781365839000,-153.0,0.00011166,2]
[424975363,1781365839000,-166.66,0.00011178,2]
[424975364,1781365839000,-166.66,0.00011288,2]
[424975367,1781365839000,-4124.08,0.00011525,2]
[424975365,1781365839000,-166.66,0.00011397,2]
[424975368,1781365839000,-1949.69,0.00011581,2]
[424975370,1781365839000,-904.73318074,0.00011924,2]
[424975366,1781365839000,-166.66,0.00011507,2]
[424975369,1781365839000,-180.53,0.00011581,2]
[424975361,1781365839000,-151.0,0.00011166,2]
[424975378,1781365839000,-151.0,0.00011966,2]
[424975371,1781365839000,-195.0,0.00011924,2]
[424975373,1781365839000,-195.0,0.00011966,2]
[424975375,1781365839000,-311.0,0.00011966,2]
[424975374,1781365839000,-152.0,0.00011966,2]
[424975377,1781365839000,-319.0,0.00011966,2]
[424975379,1781365839000,-313.0,0.00011966,2]
[424975376,1781365839000,-320.0,0.00011966,2]
[424975381,1781365839000,-309.0,0.00011966,2]
[424975380,1781365839000,-314.0,0.00011966,2]
[424975354,1781365839000,-151.0,0.00011166,2]
[424975372,1781365839000,-433.0,0.00011945,2]
[424975358,1781365839000,-151.0,0.00011166,2]
[424975345,1781365839000,-1085.81,0.00010993,2]
[424975352,1781365839000,-150.0,0.00011166,2]
[424975382,1781365839000,-315.0,0.00011966,2]
[424975338,1781365839000,-4005.81285831,0.00010849,2]
[424975340,1781365839000,-255.0,0.00010859,2]
[424975339,1781365839000,-151.0,0.00010851,2]
[424975336,1781365839000,-250.0,0.00010848,2]
[424975337,1781365839000,-500.0,0.00010848,2]